bitfinex/quotes_SOLUSD_20250814
["timestamp","ask_amount","ask_price","bid_price","bid_amount"]
[1755166068598,10.30131228,205.33,205.28,26.0]
[1755166068990,0.58,205.38,205.29,0.65]
[1755166069314,10.0,205.45,205.33,26.0]
[1755166069315,52.44885526,205.43,205.33,26.0]
[1755166069486,0.58,205.43,205.33,26.65]
[1755166069685,9.72131228,205.41,205.33,26.65]
[1755166070000,0.58,205.41,205.33,26.0]
[1755166070203,9.72131228,205.44,205.34,0.65]
[1755166070513,0.58,205.43,205.34,0.65]
[1755166071114,44.98131228,205.45,205.34,0.65]
[1755166071709,35.26,205.45,205.34,0.65]
[1755166072618,10.30131228,205.46,205.38,26.0]
[1755166072791,0.58,205.46,205.38,26.65]
[1755166073317,10.30131228,205.5,205.4,26.0]
[1755166073497,9.72131228,205.52,205.41,0.65]
[1755166074023,9.72131228,205.46,205.38,0.65]
[1755166074314,9.72131228,205.44,205.39,26.0]
[1755166074626,10.30131228,205.44,205.39,26.0]
[1755166074984,9.72131228,205.42,205.39,26.0]
[1755166075212,15.10621557,205.48,205.35,0.65]
[1755166075213,0.58,205.41,205.35,0.65]
[1755166075384,0.58,205.44,205.35,0.65]
[1755166075587,9.72131228,205.42,205.35,0.65]
[1755166078218,9.72131228,205.37,205.27,14.623924]
[1755166078413,9.72131228,205.29,205.27,0.03]
[1755166078926,9.72131228,205.3,205.27,0.03]
[1755166079705,9.72131228,205.28,205.27,0.03]
[1755166080185,10.30131228,205.28,205.27,0.03]
[1755166081413,60.92752785,205.28,205.27,0.03]
[1755166081712,65.79892301,205.28,205.27,0.03]
[1755166082719,15.10621557,205.27,205.22,0.03]
[1755166082889,24.82752785,205.25,205.22,0.03]
[1755166083091,25.40752785,205.25,205.22,0.03]
[1755166083708,45.26131228,205.25,205.22,0.03]
[1755166083914,45.84131228,205.25,205.22,0.03]
[1755166085617,36.12,205.25,205.22,0.03]
[1755166085806,50.71341946,205.25,205.22,0.03]
[1755166086325,65.81963503,205.25,205.22,0.03]
[1755166088301,56.05832275,205.25,205.22,0.03]
[1755166088522,65.77963503,205.25,205.22,0.03]
[1755166089298,56.74068243,205.27,205.22,0.03]
[1755166089522,15.10621557,205.26,205.22,0.03]
[1755166089711,45.20131228,205.25,205.22,0.03]
[1755166090415,9.72131228,205.25,205.22,0.03]
[1755166090628,45.20131228,205.25,205.22,0.03]
[1755166091207,50.07341946,205.25,205.22,0.03]
[1755166091917,50.09341946,205.25,205.22,0.03]
[1755166092819,45.18131228,205.25,205.22,0.03]
[1755166094028,35.46,205.25,205.22,0.03]
[1755166094203,45.18131228,205.25,205.22,0.03]
[1755166094606,35.46,205.25,205.22,0.03]
[1755166094910,45.18131228,205.25,205.22,0.03]
[1755166096517,45.16131228,205.25,205.22,0.03]
[1755166096730,35.44,205.25,205.22,0.03]
[1755166097029,45.16131228,205.25,205.22,0.03]
[1755166097837,50.03341946,205.25,205.22,0.03]
[1755166098044,45.16131228,205.25,205.22,0.03]
[1755166098734,35.38,205.25,205.24,0.74]
[1755166100038,35.4,205.25,205.24,0.74]
[1755166100425,45.12131228,205.25,205.24,0.03]
[1755166102019,0.06,205.28,205.24,0.74]
[1755166102336,45.08131228,205.27,205.25,0.71]
[1755166102545,9.72131228,205.26,205.24,0.03]
[1755166102740,45.18131228,205.25,205.24,0.03]
[1755166103316,35.46,205.25,205.24,0.03]
[1755166103528,35.46,205.25,205.24,0.74]
[1755166103932,45.18131228,205.25,205.24,0.03]
[1755166104546,35.46,205.25,205.24,0.74]
[1755166105624,45.18131228,205.25,205.24,0.03]
[1755166105825,50.05341946,205.25,205.24,0.03]
[1755166106231,0.06,205.28,205.24,26.74]
[1755166106439,0.06,205.28,205.24,26.03]
[1755166106644,0.06,205.28,205.25,0.71]
[1755166106849,0.06,205.27,205.25,0.71]
[1755166107025,0.06,205.28,205.25,0.71]
[1755166108145,0.06,205.28,205.26,0.71]
[1755166108331,0.06,205.28,205.24,26.03]
[1755166108332,0.06,205.28,205.27,0.71]
[1755166109337,0.06,205.28,205.24,0.03]
[1755166109520,0.06,205.28,205.25,0.71]
[1755166109844,0.06,205.28,205.26,0.71]
[1755166110047,0.06,205.28,205.27,0.71]
[1755166111152,9.78131228,205.28,205.24,0.03]
[1755166111322,9.72131228,205.25,205.24,0.03]
[1755166111523,45.28131228,205.25,205.24,0.03]
[1755166112831,45.92131228,205.25,205.24,0.03]
[1755166113249,50.15341946,205.25,205.24,0.03]
[1755166113543,35.56,205.25,205.24,0.03]
[1755166113765,15.80621557,205.28,205.24,0.69]
[1755166113766,0.06,205.28,205.24,0.69]
[1755166115440,0.06,205.28,205.25,0.66]
[1755166115644,9.78131228,205.28,205.24,0.03]
[1755166115851,0.06,205.28,205.24,0.69]
[1755166116146,0.06,205.28,205.24,0.03]
[1755166116346,9.78131228,205.28,205.24,0.03]
[1755166116524,9.72131228,205.25,205.24,0.03]
[1755166116724,10.36131228,205.25,205.24,0.03]
[1755166117329,30.33963503,205.25,205.24,0.03]
[1755166118360,30.33963503,205.25,205.22,0.03]
[1755166118550,24.82752785,205.23,205.22,0.03]
[1755166118933,25.46752785,205.23,205.22,0.03]
[1755166119255,25.46752785,205.23,205.21,0.03]
[1755166119256,41.24837714,205.22,205.21,0.03]
[1755166119451,66.48250883,205.22,205.21,0.03]
[1755166119859,0.14216157,205.21,205.2,0.03]
[1755166120084,51.86885526,205.21,205.18,0.03]
[1755166120368,9.72131228,205.19,205.18,0.03]
[1755166121184,102.63507083,205.2,205.18,0.69]
[1755166121185,87.52885526,205.2,205.18,0.69]
[1755166121358,35.66,205.2,205.19,0.66]
[1755166122862,9.72131228,205.24,205.19,0.66]
[1755166123048,15.10621557,205.26,205.19,0.66]
[1755166123049,35.66,205.23,205.19,0.66]
[1755166123372,45.36131228,205.22,205.18,0.03]
[1755166123663,45.36131228,205.21,205.18,0.03]
[1755166123873,9.72131228,205.19,205.18,0.03]
[1755166126148,9.72131228,205.22,205.18,0.69]
[1755166126348,35.64,205.21,205.18,0.69]
[1755166126548,35.64,205.21,205.18,0.03]
[1755166126750,35.64,205.21,205.19,0.66]
[1755166126973,35.64,205.21,205.2,0.66]
[1755166127278,35.64,205.21,205.18,0.03]
[1755166127466,35.64,205.21,205.18,0.69]
[1755166127676,35.64,205.21,205.19,0.66]
[1755166128790,35.64,205.21,205.18,0.03]
[1755166128973,35.64,205.21,205.2,0.66]
[1755166129671,35.64,205.21,205.18,0.69]
[1755166129876,45.36131228,205.21,205.18,0.69]
[1755166130186,45.36131228,205.21,205.18,0.03]
[1755166130385,9.72131228,205.2,205.18,0.03]
[1755166131688,10.36131228,205.19,205.18,0.03]
[1755166131902,9.72131228,205.19,205.18,0.03]
[1755166132584,14.59484412,205.19,205.18,0.03]
[1755166134292,15.23484412,205.19,205.18,0.03]
[1755166134671,30.34105969,205.19,205.18,0.03]
[1755166135073,65.86105969,205.19,205.18,0.03]
[1755166136383,65.86105969,205.19,205.17,0.03]
[1755166136384,15.10621557,205.18,205.15,0.03]
[1755166136578,60.98752785,205.17,205.15,0.03]
[1755166136798,65.86153477,205.17,205.15,0.03]
[1755166137404,15.10621557,205.16,205.15,0.03]
[1755166137573,15.10621557,205.16,205.14,0.03]
[1755166137574,25.46752785,205.16,205.14,0.03]
[1755166137779,15.24837714,205.14,205.05,0.69]
[1755166137991,9.72131228,205.12,205.05,0.69]
[1755166138183,25.46752785,205.12,205.05,0.69]
[1755166138701,29.70272285,205.12,205.05,0.69]
[1755166138905,35.54,205.12,205.11,0.69]
[1755166140581,35.54,205.12,205.11,0.03]
[1755166140909,35.54,205.12,205.11,0.74]
[1755166142174,65.24272285,205.12,205.11,0.03]
[1755166142380,60.36752785,205.12,205.11,0.03]
[1755166142701,65.24272285,205.12,205.11,0.03]
[1755166144694,35.54,205.12,205.11,0.03]
[1755166145094,35.54,205.12,205.11,0.74]
[1755166145603,132.5,205.15,205.11,0.74]
[1755166145808,35.5,205.14,205.12,0.71]
[1755166146375,35.5,205.14,205.11,0.03]
[1755166146999,35.5,205.14,205.12,0.71]
[1755166147907,35.5,205.14,205.13,0.71]
[1755166148281,132.5,205.15,205.13,0.71]
[1755166148498,132.5,205.15,205.11,0.03]
[1755166148681,35.46,205.14,205.11,0.03]
[1755166148888,35.46,205.14,205.12,0.71]
[1755166150004,35.52,205.14,205.12,0.71]
[1755166151077,24.82752785,205.13,205.11,0.03]
[1755166151282,45.80131228,205.12,205.11,0.03]
[1755166151481,65.14272285,205.12,205.11,0.03]
[1755166152296,55.42141057,205.12,205.11,0.03]
[1755166152501,65.14272285,205.12,205.11,0.03]
[1755166152888,50.54621557,205.12,205.11,0.03]
[1755166153088,60.26752785,205.12,205.11,0.03]
[1755166153783,65.14272285,205.12,205.11,0.03]
[1755166157008,211.36,205.11,205.08,0.03]
[1755166157313,35.38,205.1,205.08,0.03]
[1755166158095,35.36,205.09,205.08,0.03]
[1755166158415,142.22131228,205.11,205.08,0.03]
[1755166158599,35.36,205.1,205.08,0.03]
[1755166158786,79.6,205.13,205.08,0.03]
[1755166158991,79.6,205.13,205.09,0.71]
[1755166159216,114.98,205.13,205.09,0.71]
[1755166161334,79.6,205.13,205.09,0.71]
[1755166163613,79.6,205.13,205.08,0.03]
[1755166163807,35.32,205.12,205.09,0.71]
[1755166164188,35.32,205.12,205.08,0.03]
[1755166164189,35.32,205.12,205.1,0.71]
[1755166164408,35.32,205.12,205.08,0.03]
[1755166164590,35.32,205.12,205.08,0.74]
[1755166165999,35.32,205.12,205.08,0.03]
[1755166166214,35.97,205.12,205.08,0.03]
[1755166166911,35.32,205.12,205.08,0.03]
[1755166167299,45.04131228,205.12,205.08,0.03]
[1755166167495,15.10621557,205.1,205.08,0.03]
[1755166167700,45.69131228,205.09,205.08,0.03]
[1755166167997,35.32,205.09,205.08,0.03]
[1755166168303,35.97,205.09,205.08,0.03]
[1755166169600,35.32,205.09,205.08,0.03]
[1755166170124,45.69131228,205.09,205.08,0.03]
[1755166170321,50.56722041,205.09,205.08,0.03]
[1755166170695,65.67343598,205.09,205.08,0.03]
[1755166172503,15.10621557,205.08,205.07,0.03]
[1755166172821,0.14216157,205.07,205.06,0.1]
[1755166173003,60.93968942,205.07,205.06,0.1]
[1755166173725,65.81607309,205.07,205.06,0.1]
[1755166174312,30.55607309,205.07,205.06,0.1]
[1755166174621,50.34621557,205.06,205.03,0.03]
[1755166174800,24.82752785,205.04,205.03,0.03]
[1755166175119,25.53752785,205.04,205.03,0.03]
[1755166175503,15.10621557,205.02,204.98,0.03]
[1755166175710,45.69131228,205.01,204.98,0.03]
[1755166175916,50.56912311,205.01,204.98,0.03]
[1755166176304,65.67533868,205.01,204.98,0.03]
[1755166178734,30.41533868,205.01,204.98,0.03]
[1755166178938,24.82752785,205.01,204.98,0.03]
[1755166179102,15.10621557,205.02,204.98,0.03]
[1755166179305,35.22,205.01,205.0,0.82]
[1755166182634,35.22,205.01,205.0,0.1]
[1755166183006,35.22,205.01,205.0,0.82]
[1755166184227,0.71,205.06,205.0,0.82]
[1755166184228,35.22,205.06,205.0,0.82]
[1755166186348,79.6,205.05,205.0,0.82]
[1755166187033,35.2,205.08,205.0,0.82]
[1755166189830,35.2,205.08,205.0,26.82]
[1755166190022,35.2,205.08,205.01,0.72]
[1755166191814,35.2,205.08,205.01,26.72]
[1755166192016,35.16,205.1,205.02,0.72]
[1755166192436,79.6,205.09,205.02,0.72]
[1755166194133,80.31,205.09,205.02,0.72]
[1755166194434,89.32131228,205.09,205.02,0.72]
[1755166194735,9.72131228,205.07,205.0,0.82]
[1755166194944,90.03131228,205.06,205.0,0.1]
[1755166195233,9.72131228,205.03,205.0,0.1]
[1755166195422,9.72131228,205.02,205.0,0.1]
[1755166195609,90.03131228,205.01,205.0,0.1]
[1755166195810,0.71,205.01,205.0,0.1]
[1755166196544,9.72131228,205.02,205.0,0.1]
[1755166197035,0.71,205.01,205.0,0.1]
[1755166197241,10.43131228,205.01,205.0,0.1]
[1755166198417,15.30912311,205.01,205.0,0.1]
[1755166198939,10.43131228,205.01,205.0,0.1]
[1755166199440,0.71,205.01,205.0,0.1]
[1755166200046,15.30912311,205.01,205.0,0.1]
[1755166200537,35.12,205.03,205.0,0.1]
[1755166200743,9.72131228,205.01,205.0,0.1]
[1755166200916,25.50752785,205.01,205.0,0.1]
[1755166201610,15.78621557,205.01,205.0,0.1]
[1755166201840,25.50752785,205.01,205.0,0.1]
[1755166202144,79.5,205.0,204.98,0.03]
[1755166202340,35.8,204.99,204.98,0.03]
[1755166203019,40.67828674,204.99,204.98,0.03]
[1755166203225,65.50581459,204.99,204.98,0.03]
[1755166205517,15.10621557,204.98,204.97,0.2]
[1755166205717,25.64968942,204.98,204.96,0.03]
[1755166205954,39.99828674,204.99,204.96,0.03]
[1755166205955,60.06968942,204.97,204.96,0.03]
[1755166206247,60.74968942,204.97,204.96,0.03]
[1755166206621,65.48629059,204.97,204.96,0.03]
[1755166207728,70.52351521,204.97,204.96,0.03]
[1755166208733,65.62845216,204.97,204.96,0.03]
[1755166208941,67.57933916,204.97,204.96,0.03]
[1755166209531,15.24837714,204.93,204.82,0.71]
[1755166209731,50.82752785,204.91,204.82,0.71]
[1755166210033,86.72752785,204.91,204.82,0.71]
[1755166210238,90.60878485,204.91,204.82,0.71]
[1755166210621,95.48897615,204.91,204.82,0.71]
[1755166211046,55.20640687,204.91,204.87,0.71]
[1755166211372,65.60771915,204.91,204.85,0.71]
[1755166212036,65.60771915,204.91,204.85,0.74]
[1755166213160,55.88640687,204.91,204.85,0.74]
[1755166213340,55.20640687,204.91,204.85,0.74]
[1755166213537,79.4,204.88,204.85,0.74]
[1755166213783,35.2,204.87,204.85,0.74]
[1755166214066,9.72131228,204.86,204.85,0.03]
[1755166214524,35.2,204.87,204.85,0.03]
[1755166214725,14.60269468,204.86,204.85,0.03]
[1755166214956,4.8813824,204.86,204.85,0.03]
[1755166215249,14.60269468,204.86,204.85,0.03]
[1755166215439,4.8813824,204.86,204.85,0.03]
[1755166215758,14.60269468,204.86,204.85,0.74]
[1755166216134,9.72131228,204.86,204.85,0.74]
[1755166216456,79.4,204.88,204.85,0.74]
[1755166216757,35.2,204.87,204.86,0.71]
[1755166217254,44.92131228,204.87,204.86,0.71]
[1755166218032,49.80249219,204.87,204.85,0.03]
[1755166218255,237.40752785,204.86,204.85,0.03]
[1755166219130,184.14968942,204.86,204.83,0.03]
[1755166219345,24.82752785,204.84,204.83,0.03]
[1755166220128,29.70938686,204.84,204.83,0.03]
[1755166221442,30.38938686,204.84,204.83,0.03]
[1755166221861,15.10621557,204.83,204.75,0.71]
[1755166222040,9.72131228,204.76,204.72,0.71]
[1755166222242,9.72131228,204.73,204.59,37.63645594]
[1755166222440,44.98131228,204.72,204.62,26.0]
[1755166222668,44.98131228,204.72,204.64,26.0]
[1755166222846,44.98131228,204.72,204.65,0.71]
[1755166223255,9.72131228,204.71,204.65,0.71]
[1755166223563,35.28,204.7,204.65,0.71]
[1755166223760,45.00131228,204.7,204.65,0.71]
[1755166224142,9.72131228,204.69,204.66,0.71]
[1755166224340,45.00131228,204.68,204.67,0.71]
[1755166224553,35.28,204.68,204.67,0.71]
[1755166225166,45.00131228,204.68,204.67,0.71]
[1755166225549,35.28,204.68,204.67,0.71]
[1755166225760,35.28,204.68,204.65,0.71]
[1755166226069,45.00131228,204.68,204.66,0.71]
[1755166226370,45.00131228,204.68,204.61,3.93303501]
[1755166226371,49.88700677,204.68,204.64,0.71]
[1755166226546,49.88700677,204.68,204.65,0.71]
[1755166227155,35.28,204.68,204.65,0.71]
[1755166227458,35.26,204.67,204.66,0.71]
[1755166227858,9.72131228,204.71,204.66,0.71]
[1755166228068,35.24,204.7,204.66,0.71]
[1755166228257,35.24,204.7,204.67,0.71]
[1755166228555,44.96131228,204.7,204.65,0.71]
[1755166228894,44.96131228,204.7,204.66,0.71]
[1755166229061,44.96131228,204.7,204.59,26.0]
[1755166229262,79.6,204.66,204.6,0.71]
[1755166229757,79.6,204.66,204.56,15.10621557]
[1755166230189,35.26,204.67,204.55,41.64592266]
[1755166230190,79.6,204.65,204.55,41.64592266]
[1755166230474,79.6,204.65,204.55,26.99855766]
[1755166230475,79.6,204.64,204.55,26.99855766]
[1755166231148,79.6,204.64,204.53,29.75501157]
[1755166231149,35.24,204.63,204.53,0.75356923]
[1755166231356,35.24,204.63,204.53,4.70027555]
[1755166231659,35.24,204.63,204.53,3.94670632]
[1755166231853,35.24,204.63,204.54,0.72]
[1755166232261,35.24,204.63,204.59,0.03]
[1755166232470,35.24,204.63,204.61,0.03]
[1755166233456,35.24,204.63,204.62,0.72]
[1755166233687,35.24,204.63,204.61,0.03]
[1755166234373,35.24,204.63,204.61,0.75]
[1755166234762,35.24,204.63,204.61,0.03]
[1755166235393,35.3,204.63,204.61,0.03]
[1755166235591,0.06,204.63,204.61,0.75]
[1755166235750,35.2,204.62,204.61,0.75]
[1755166236659,35.24,204.63,204.61,0.75]
[1755166237066,35.24,204.63,204.61,0.03]
[1755166237266,0.06,204.63,204.61,0.03]
[1755166237583,35.86,204.62,204.61,0.03]
[1755166237755,35.18,204.62,204.61,0.03]
[1755166238777,35.86,204.62,204.61,0.03]
[1755166240152,65.57463565,204.62,204.61,0.03]
[1755166240671,15.10621557,204.61,204.59,0.03]
[1755166240868,25.50752785,204.6,204.59,0.03]
[1755166241072,60.74752785,204.6,204.59,0.03]
[1755166241652,35.24,204.6,204.59,0.03]
[1755166243677,51.04621557,204.6,204.59,0.03]
[1755166243898,60.76752785,204.6,204.59,0.03]
[1755166244175,25.50752785,204.6,204.59,0.03]
[1755166244374,35.24,204.6,204.59,0.03]
[1755166244579,60.74752785,204.6,204.59,0.03]
[1755166245175,64.34255753,204.6,204.59,0.03]
[1755166245376,60.74752785,204.6,204.59,0.03]
[1755166245561,64.3415758,204.6,204.59,0.03]
[1755166246669,33.98916133,204.6,204.59,0.03]
[1755166246873,29.1015758,204.6,204.59,0.03]
[1755166247267,53.94026352,204.6,204.59,0.03]
[1755166247461,38.83404795,204.6,204.59,0.03]
[1755166247874,2.01365,204.63,204.59,0.03]
[1755166248061,35.26,204.62,204.59,0.75]
[1755166248267,35.26,204.62,204.6,0.72]
[1755166248687,35.26,204.62,204.59,0.03]
[1755166248869,35.26,204.62,204.59,0.75]
[1755166249562,35.26,204.62,204.59,0.03]
[1755166249761,3.60090861,204.61,204.59,0.03]
[1755166249966,35.26,204.6,204.59,0.03]
[1755166250897,35.26,204.61,204.59,0.75]
[1755166251964,35.26,204.61,204.59,0.03]
[1755166252873,35.94,204.61,204.59,0.03]
[1755166253288,35.26,204.61,204.59,0.03]
[1755166254662,35.94,204.61,204.59,0.03]
[1755166254867,0.68,204.6,204.59,0.03]
[1755166255298,25.50752785,204.6,204.59,0.03]
[1755166255481,29.11592661,204.6,204.59,0.03]
[1755166256368,31.07014861,204.6,204.59,0.03]
[1755166256887,35.95773414,204.6,204.59,0.03]
[1755166257086,71.19773414,204.6,204.59,0.03]
[1755166257489,61.47642186,204.6,204.59,0.03]
[1755166257696,71.19773414,204.6,204.59,0.03]
[1755166257883,61.47642186,204.6,204.59,0.03]
[1755166258202,71.19773414,204.6,204.59,0.03]
[1755166258785,61.47642186,204.6,204.59,0.03]
[1755166258986,71.19773414,204.6,204.59,0.03]
[1755166260099,28.43592661,204.6,204.59,0.03]
[1755166260400,35.24,204.6,204.59,0.03]
[1755166260604,0.06,204.61,204.59,0.03]
[1755166260779,35.22,204.6,204.59,0.03]
[1755166261176,35.28,204.61,204.59,0.03]
[1755166261498,35.28,204.61,204.59,0.74]
[1755166263394,35.28,204.61,204.6,0.71]
[1755166263780,0.06,204.61,204.6,0.71]
[1755166272704,0.06,204.61,204.59,26.03]
[1755166272705,0.06,204.61,204.59,0.03]
[1755166273414,35.82,204.6,204.59,0.03]
[1755166273706,60.64752785,204.6,204.59,0.03]
[1755166274985,35.82,204.6,204.59,0.03]
[1755166275680,65.53511338,204.6,204.59,0.03]
[1755166275887,0.72,204.6,204.59,0.03]
[1755166276096,35.16,204.6,204.59,0.03]
[1755166277587,60.70752785,204.6,204.59,0.03]
[1755166277980,50.98621557,204.6,204.59,0.03]
[1755166278822,60.70752785,204.6,204.59,0.03]
[1755166279108,198.09511338,204.6,204.59,0.03]
[1755166280090,148.32621557,204.6,204.59,0.03]
[1755166280289,183.52621557,204.6,204.59,0.03]
[1755166282695,168.42,204.6,204.59,0.03]
[1755166284186,198.13511338,204.6,204.59,0.03]
[1755166284385,188.4138011,204.6,204.59,0.03]
[1755166284707,198.13511338,204.6,204.59,0.03]
[1755166284912,168.42,204.6,204.59,0.03]
[1755166285084,132.5,204.6,204.59,0.03]
[1755166285297,0.06,204.61,204.59,0.74]
[1755166285724,0.06,204.61,204.6,0.71]
[1755166286220,0.06,204.61,204.59,0.03]
[1755166286393,0.06,204.61,204.59,0.74]
[1755166286794,0.06,204.61,204.6,0.71]
[1755166291451,0.06,204.61,204.59,0.03]
[1755166291931,0.66,204.6,204.59,0.03]
[1755166292430,35.84,204.6,204.59,0.03]
[1755166292909,35.18,204.6,204.59,0.03]
[1755166295031,35.84,204.6,204.59,0.03]
[1755166296031,35.18,204.6,204.59,0.03]
[1755166296410,35.84,204.6,204.59,0.03]
[1755166297725,0.06,204.61,204.59,0.72]
[1755166298201,0.06,204.61,204.59,0.03]
[1755166299206,0.72,204.61,204.59,0.03]
[1755166299420,80.26,204.6,204.59,0.03]
[1755166299605,5.54758553,204.6,204.59,0.03]
[1755166299805,10.38131228,204.6,204.59,0.03]
[1755166300121,0.66,204.6,204.59,0.03]
[1755166300326,25.48752785,204.6,204.59,0.03]
[1755166300525,15.76621557,204.6,204.59,0.03]
[1755166303730,44.92131228,204.61,204.59,0.03]
[1755166303731,0.06,204.61,204.59,0.03]
[1755166303959,35.14,204.6,204.59,0.03]
[1755166306239,0.06,204.61,204.59,0.72]
[1755166306641,0.06,204.61,204.6,0.69]
[1755166311232,0.06,204.61,204.6,26.69]
[1755166313244,0.06,204.61,204.6,0.69]
[1755166314656,0.06,204.61,204.59,0.03]
[1755166314950,0.06,204.61,204.59,0.72]
[1755166315171,0.06,204.61,204.59,0.03]
[1755166315739,0.06,204.61,204.6,0.69]
[1755166317338,0.06,204.61,204.59,0.03]
[1755166317543,0.72,204.61,204.59,0.03]
[1755166318063,0.66,204.6,204.59,0.03]
[1755166320672,15.26889781,204.6,204.59,0.03]
[1755166320846,65.47511338,204.6,204.59,0.03]
[1755166321161,65.52511338,204.6,204.59,0.03]
[1755166321341,55.8038011,204.6,204.59,0.03]
[1755166321537,60.63752785,204.6,204.59,0.03]
[1755166321762,0.71,204.6,204.59,0.03]
[1755166323589,15.31889781,204.6,204.59,0.03]
[1755166324258,15.31889781,204.6,204.56,0.03]
[1755166324570,24.82752785,204.57,204.56,0.03]
[1755166324776,0.71,204.6,204.56,0.03]
[1755166324961,35.81,204.59,204.56,0.03]
[1755166325155,35.1,204.59,204.56,0.03]
[1755166325557,0.06,204.61,204.56,0.72]
[1755166325762,0.06,204.61,204.57,0.69]
[1755166326065,0.06,204.61,204.58,0.69]
[1755166326766,0.06,204.61,204.59,0.69]
[1755166327383,0.06,204.61,204.58,26.0]
[1755166327384,0.06,204.61,204.6,0.69]
[1755166328078,0.06,204.61,204.6,26.69]
[1755166330563,0.06,204.61,204.6,41.79621557]
[1755166330964,0.06,204.61,204.6,76.89621557]
[1755166331278,0.06,204.61,204.6,92.27255965]
[1755166331599,0.06,204.61,204.6,94.22468365]
[1755166333168,0.06,204.63,204.62,25.10621557]
[1755166333375,0.06,204.64,204.63,15.10621557]
[1755166333677,0.71,204.87,204.78,26.0]
[1755166333882,0.71,204.87,204.82,26.0]
[1755166334875,0.71,204.89,204.82,26.0]
[1755166335084,0.71,204.89,204.82,33.12369783]
[1755166335271,0.71,204.89,204.82,26.0]
[1755166335780,0.71,204.89,204.82,33.06732831]
[1755166336382,0.71,204.89,204.82,26.0]
[1755166336891,0.71,204.89,204.84,26.0]
[1755166337460,10.43131228,204.89,204.81,26.0]
[1755166337692,10.43131228,204.89,204.83,26.0]
[1755166337894,0.71,204.88,204.83,26.0]
[1755166338494,0.71,204.87,204.82,26.0]
[1755166339164,79.6,204.86,204.82,26.0]
[1755166339365,0.71,204.85,204.82,26.0]
[1755166339587,0.71,204.84,204.83,26.0]
[1755166339786,79.6,204.86,204.83,26.0]
[1755166339993,0.71,204.86,204.83,26.0]
[1755166340289,0.71,204.88,204.83,26.0]
[1755166340470,0.71,204.87,204.83,26.0]
[1755166340666,0.71,204.86,204.83,26.0]
[1755166340891,79.6,204.89,204.83,26.0]
[1755166340892,0.71,204.85,204.83,26.0]
[1755166341410,0.71,204.84,204.83,26.0]
[1755166341566,0.71,204.84,204.75,24.633075]
[1755166341567,0.71,204.84,204.77,35.06]
[1755166342379,0.71,204.84,204.8,26.0]
[1755166342692,0.71,204.83,204.8,26.0]
[1755166342902,0.71,204.83,204.8,32.97336785]